bitfinex/quotes_SOLUSD_20250611
["timestamp","ask_amount","ask_price","bid_price","bid_amount"]
[1749667163080,1.5593,163.71,163.64,2.0617756]
[1749667163297,14.36092518,163.67,163.63,0.14216157]
[1749667163510,14.36092518,163.67,163.64,2.0617756]
[1749667163663,14.36092518,163.67,163.65,2.06177534]
[1749667164001,14.36092518,163.67,163.66,2.06177309]
[1749667164307,14.36092518,163.67,163.63,0.14216157]
[1749667164472,14.36092518,163.67,163.64,2.06178331]
[1749667164703,14.36092518,163.66,163.65,2.06178582]
[1749667164925,14.36092518,163.66,163.62,7.89607788]
[1749667165218,14.36092518,163.65,163.63,2.05576031]
[1749667165392,14.36092518,163.65,163.64,2.05576031]
[1749667165595,14.36092518,163.65,163.64,2.05576005]
[1749667165794,1.5593,163.71,163.64,2.05576005]
[1749667166125,14.36092518,163.65,163.62,0.28432314]
[1749667166294,14.36092518,163.64,163.63,2.05576896]
[1749667166496,14.36092518,163.64,163.63,2.05577101]
[1749667166702,14.36092518,163.64,163.63,2.05590734]
[1749667166913,14.36092518,163.64,163.63,2.05592763]
[1749667167296,14.36092518,163.66,163.63,2.05517794]
[1749667167496,14.36092518,163.66,163.64,2.05517794]
[1749667167720,14.36092518,163.66,163.61,40.36092518]
[1749667167921,14.36092518,163.66,163.62,14.36092518]
[1749667168119,14.36092518,163.66,163.63,2.05281359]
[1749667168327,14.36092518,163.66,163.62,7.61175474]
[1749667168622,14.36092518,163.66,163.63,2.05271884]
[1749667168921,20.20894886,163.71,163.62,26.0]
[1749667169122,14.36092518,163.66,163.62,26.0]
[1749667169426,14.36092518,163.66,163.63,2.05280287]
[1749667169601,14.36092518,163.66,163.64,2.05280261]
[1749667169798,14.36092518,163.66,163.65,2.05280261]
[1749667170026,14.36092518,163.66,163.65,2.05279862]
[1749667170222,20.20894886,163.71,163.65,2.05279862]
[1749667170434,14.36092518,163.66,163.62,26.0]
[1749667170725,14.36092518,163.66,163.63,2.05280986]
[1749667170927,14.36092518,163.66,163.64,2.05280961]
[1749667171102,14.36092518,163.66,163.62,26.0]
[1749667171305,14.36092518,163.67,163.64,0.28432314]
[1749667171518,14.36092518,163.67,163.65,2.05278789]
[1749667171727,1.5593,163.71,163.66,2.06055653]
[1749667171905,14.36092518,163.67,163.64,0.28432314]
[1749667172223,14.36092518,163.68,163.65,2.06051786]
[1749667172399,14.36092518,163.68,163.66,2.06053212]
[1749667172723,14.36092518,163.68,163.64,0.28432314]
[1749667172915,14.36092518,163.68,163.65,2.06053133]
[1749667173120,14.36092518,163.68,163.66,2.06052056]
[1749667173422,14.36092518,163.68,163.67,2.06052056]
[1749667173623,14.36092518,163.68,163.67,2.06052005]
[1749667174321,14.36092518,163.68,163.64,0.28432314]
[1749667174700,14.36092518,163.68,163.65,2.06052082]
[1749667174901,14.36092518,163.68,163.66,2.06044674]
[1749667175130,1.5593,163.71,163.67,2.06044648]
[1749667175317,14.36092518,163.68,163.63,0.42648471]
[1749667175642,14.36092518,163.67,163.64,2.06044729]
[1749667175802,14.36092518,163.65,163.63,0.28432314]
[1749667175998,14.36092518,163.64,163.6,11.28427545]
[1749667176201,14.36092518,163.68,163.61,2.06068985]
[1749667176202,14.36092518,163.62,163.61,2.06068985]
[1749667176523,14.36092518,163.62,163.6,0.28432314]
[1749667176715,14.36092518,163.62,163.61,2.06071643]
[1749667176915,21.00622518,163.68,163.61,2.06073398]
[1749667176916,14.36092518,163.63,163.61,2.06073398]
[1749667177116,14.36092518,163.63,163.62,2.06075361]
[1749667177429,14.36092518,163.64,163.62,2.06070095]
[1749667177630,14.36092518,163.65,163.63,2.06067975]
[1749667177800,14.36092518,163.66,163.64,2.06067975]
[1749667177998,14.36092518,163.66,163.61,14.36092518]
[1749667178229,14.36092518,163.66,163.62,2.34496118]
[1749667178520,14.36092518,163.66,163.63,2.06062639]
[1749667178729,14.36092518,163.64,163.62,0.28432314]
[1749667178901,14.36092518,163.64,163.63,2.06062646]
[1749667179110,14.36092518,163.64,163.63,2.0606236]
[1749667179317,14.36092518,163.65,163.63,2.0606236]
[1749667179511,14.36092518,163.65,163.62,0.28432314]
[1749667179716,14.36092518,163.65,163.63,2.06067949]
[1749667179901,14.36092518,163.65,163.62,0.28432314]
[1749667180107,14.36092518,163.65,163.63,2.06067949]
[1749667180307,14.36092518,163.65,163.64,2.06067949]
[1749667180716,14.36092518,163.65,163.64,2.06068596]
[1749667181831,26.0,163.7,163.64,2.06068596]
[1749667182034,1.5593,163.71,163.65,2.06066373]
[1749667182334,1.5593,163.71,163.66,2.06057214]
[1749667182510,1.5593,163.71,163.67,2.06057214]
[1749667182710,1.5593,163.71,163.68,2.06063478]
[1749667182917,1.5593,163.71,163.69,2.06063478]
[1749667183118,1.5593,163.71,163.7,2.06062026]
[1749667183360,1.5593,163.71,163.7,2.06062]
[1749667183632,15.92022518,163.71,163.7,2.06062]
[1749667183835,15.92022518,163.71,163.7,2.06063037]
[1749667184037,15.92022518,163.71,163.7,2.06062488]
[1749667184618,15.92022518,163.71,163.62,14.64524832]
[1749667184834,1.5593,163.71,163.62,14.64524832]
[1749667185037,14.36092518,163.67,163.63,2.06063242]
[1749667185237,14.36092518,163.68,163.63,14.36092518]
[1749667185434,1.5593,163.71,163.63,14.36092518]
[1749667185435,1.5593,163.71,163.64,0.28432314]
[1749667185636,14.36092518,163.68,163.65,2.06049422]
[1749667185847,14.36092518,163.68,163.66,2.06044165]
[1749667186023,1.5593,163.71,163.67,2.06044165]
[1749667186334,14.36092518,163.68,163.64,0.28432314]
[1749667186538,14.36092518,163.69,163.65,2.06041098]
[1749667186742,1.5593,163.71,163.66,2.06038098]
[1749667186916,14.36092518,163.69,163.67,2.05595004]
[1749667187243,14.36092518,163.69,163.68,2.0559486]
[1749667187442,1.5593,163.71,163.68,2.05594835]
[1749667187638,14.36092518,163.69,163.64,14.64524832]
[1749667187840,14.36092518,163.69,163.65,2.05595137]
[1749667188013,14.36092518,163.69,163.64,14.64524832]
[1749667188221,14.36092518,163.69,163.65,2.05595137]
[1749667188526,14.36092518,163.69,163.66,2.05594912]
[1749667188726,14.36092518,163.69,163.67,2.05594886]
[1749667189041,1.5593,163.71,163.68,2.0559486]
[1749667189247,14.36092518,163.69,163.64,14.64524832]
[1749667189431,14.36092518,163.69,163.65,2.05190462]
[1749667189617,14.36092518,163.68,163.64,0.28432314]
[1749667189943,14.36092518,163.67,163.65,2.05190488]
[1749667190143,1.5593,163.71,163.63,0.42648471]
[1749667190329,14.36092518,163.67,163.64,2.05203354]
[1749667190641,14.36092518,163.67,163.65,2.0520343]
[1749667190868,14.36092518,163.66,163.63,0.28432314]
[1749667191145,1.5593,163.71,163.64,2.0538672]
[1749667191319,14.36092518,163.67,163.64,2.0538672]
[1749667191521,14.36092518,163.67,163.63,0.28432314]
[1749667191927,1.5593,163.71,163.64,2.05384251]
[1749667192130,14.36092518,163.66,163.63,0.28432314]
[1749667192349,1.5593,163.71,163.64,2.05384251]
[1749667192644,14.36092518,163.67,163.63,0.28432314]
[1749667192835,1.5593,163.71,163.63,0.28432314]
[1749667193043,14.36092518,163.67,163.64,2.05387257]
[1749667193417,14.36092518,163.67,163.65,2.05387257]
[1749667193642,14.36092518,163.67,163.66,2.05387257]
[1749667193848,14.36092518,163.67,163.66,2.05388384]
[1749667194152,14.36092518,163.67,163.66,2.05388359]
[1749667194344,14.36092518,163.67,163.66,2.05387309]
[1749667194550,14.36092518,163.67,163.66,2.05792141]
[1749667195127,14.36092518,163.67,163.66,2.05793191]
[1749667195529,1.5593,163.71,163.66,2.05793191]
[1749667195729,14.36092518,163.67,163.63,26.28432314]
[1749667195947,14.36092518,163.66,163.65,26.0]
[1749667196150,14.36092518,163.66,163.65,28.05790481]
[1749667196541,14.36092518,163.66,163.65,28.05790456]
[1749667196740,14.36092518,163.66,163.65,2.05790456]
[1749667196953,14.36092518,163.66,163.65,2.05821383]
[1749667197247,14.36092518,163.66,163.65,2.05821389]
[1749667197654,14.36092518,163.66,163.65,2.05823675]
[1749667197834,14.36092518,163.66,163.6,14.36092518]
[1749667198155,14.36092518,163.65,163.61,2.05825197]
[1749667198335,27.5593,163.71,163.61,14.78740989]
[1749667198538,14.36092518,163.66,163.62,2.05822256]
[1749667198746,14.36092518,163.66,163.63,2.05813956]
[1749667199068,14.36092518,163.66,163.64,2.05950746]
[1749667199264,14.36092518,163.67,163.65,2.05950746]
[1749667199557,14.36092518,163.66,163.61,52.07168534]
[1749667199741,14.36092518,163.66,163.62,2.05938202]
[1749667199937,14.36092518,163.66,163.63,2.05938176]
[1749667200146,14.36092518,163.66,163.64,2.05938176]
[1749667200336,14.36092518,163.66,163.65,2.05938976]
[1749667200537,14.36092518,163.66,163.65,2.0593895]
[1749667200735,14.36092518,163.66,163.61,52.07168534]
[1749667200941,14.36092518,163.65,163.62,2.0593895]
[1749667201142,14.36092518,163.65,163.63,2.0593895]
[1749667201349,14.36092518,163.65,163.64,2.05944102]
[1749667201547,14.36092518,163.65,163.61,37.56859859]
[1749667201749,14.36092518,163.64,163.62,2.05957817]
[1749667201950,14.36092518,163.68,163.63,2.05957817]
[1749667202167,14.36092518,163.64,163.61,26.0]
[1749667202365,14.36092518,163.64,163.62,2.05957688]
[1749667202573,14.36092518,163.64,163.63,2.05957817]
[1749667203075,14.36092518,163.64,163.63,2.06568378]
[1749667203371,14.36092518,163.64,163.63,2.06567327]
[1749667204277,14.36092518,163.65,163.61,26.0]
[1749667204868,14.36092518,163.64,163.62,2.06570291]
[1749667205167,14.36092518,163.64,163.63,2.06570403]
[1749667205545,14.36092518,163.64,163.63,2.06568378]
[1749667205945,14.36092518,163.64,163.63,2.06572971]
[1749667206163,14.36092518,163.64,163.63,2.06589998]
[1749667206369,14.36092518,163.64,163.63,2.0659873]
[1749667206558,14.36092518,163.64,163.63,2.06598717]
[1749667206745,14.36092518,163.64,163.57,11.28427545]
[1749667207075,8.2893,163.66,163.58,2.06598756]
[1749667207280,14.36092518,163.62,163.59,2.06599614]
[1749667207475,14.36092518,163.62,163.6,2.06599614]
[1749667207767,14.36092518,163.62,163.61,2.06599665]
[1749667207974,14.36092518,163.63,163.58,0.28432314]
[1749667208172,14.36092518,163.63,163.58,14.64524832]
[1749667209584,14.36092518,163.62,163.58,0.28432314]
[1749667210073,14.36092518,163.62,163.59,2.00033594]
[1749667210372,14.36092518,163.62,163.6,2.00033568]
[1749667210553,14.36092518,163.62,163.61,2.00033543]
[1749667210756,14.36092518,163.62,163.61,2.00035256]
[1749667211473,14.36092518,163.62,163.57,0.28432314]
[1749667211650,8.2893,163.66,163.57,0.28432314]
[1749667211651,14.36092518,163.61,163.58,2.00036061]
[1749667211851,14.36092518,163.61,163.57,0.42648471]
[1749667212055,14.36092518,163.59,163.58,2.0003611]
[1749667212354,14.36092518,163.59,163.58,2.00890598]
[1749667212546,18.64964886,163.65,163.56,40.36092518]
[1749667212745,14.36092518,163.6,163.57,2.0089095]
[1749667212982,14.36092518,163.6,163.58,2.0089095]
[1749667213181,14.36092518,163.6,163.56,40.36092518]
[1749667213399,14.36092518,163.6,163.57,2.00890976]
[1749667213552,18.64964886,163.65,163.58,2.00890976]
[1749667213877,14.36092518,163.6,163.59,2.00890796]
[1749667214057,14.36092518,163.6,163.56,26.0]
[1749667214252,14.36092518,163.6,163.57,2.0089203]
[1749667214568,14.36092518,163.6,163.58,2.0089095]
[1749667214769,14.36092518,163.6,163.59,2.0089095]
[1749667214965,14.36092518,163.6,163.56,26.0]
[1749667215270,14.36092518,163.6,163.57,2.00890899]
[1749667215472,14.36092518,163.6,163.58,2.00892005]
[1749667215767,14.36092518,163.6,163.59,2.00896808]
[1749667215973,14.36092518,163.6,163.59,2.00896581]
[1749667216151,14.36092518,163.6,163.56,26.0]
[1749667216352,14.36092518,163.58,163.57,2.01100093]
[1749667216761,14.36092518,163.58,163.57,2.01108696]
[1749667216978,14.36092518,163.58,163.57,2.01108881]
[1749667217167,14.36092518,163.58,163.55,0.28432314]
[1749667217168,18.64964886,163.65,163.55,0.28432314]
[1749667217379,14.36092518,163.59,163.56,2.01110488]
[1749667217579,18.64964886,163.65,163.55,14.64524832]
[1749667217777,14.36092518,163.59,163.56,2.01100997]
[1749667217986,14.36092518,163.59,163.57,2.01100072]
[1749667218185,14.36092518,163.59,163.55,14.64524832]
[1749667218567,14.36092518,163.59,163.56,2.01101462]
[1749667218881,14.36092518,163.59,163.57,2.01100669]
[1749667219054,14.36092518,163.59,163.55,14.64524832]
[1749667219473,14.36092518,163.59,163.56,2.01100097]
[1749667219673,14.36092518,163.59,163.57,2.01099719]
[1749667219874,14.36092518,163.59,163.58,2.01099719]
[1749667220089,14.36092518,163.59,163.58,2.01100748]
[1749667220391,18.64964886,163.65,163.55,14.64524832]
[1749667220679,14.36092518,163.6,163.55,0.42648471]
[1749667220863,14.36092518,163.6,163.56,2.0109886]
[1749667221057,14.36092518,163.59,163.55,14.64524832]
[1749667221259,14.36092518,163.59,163.56,2.0150915]
[1749667221467,14.36092518,163.59,163.57,2.01509065]
[1749667221690,14.36092518,163.59,163.55,14.64524832]
[1749667221867,18.64964886,163.65,163.56,2.01509094]
[1749667222063,14.36092518,163.59,163.55,14.64524832]
[1749667222376,14.36092518,163.59,163.56,2.01506861]
[1749667222571,14.36092518,163.59,163.55,14.64524832]
[1749667222979,14.36092518,163.59,163.56,2.01507041]
[1749667223292,14.36092518,163.59,163.57,1.99491649]
[1749667223477,14.36092518,163.59,163.58,1.99491623]
[1749667223660,14.36092518,163.59,163.58,1.99492642]
[1749667224062,14.36092518,163.59,163.55,14.64524832]
[1749667224288,14.36092518,163.59,163.56,1.99492718]
[1749667224511,14.36092518,163.59,163.57,1.99492693]
[1749667224787,14.36092518,163.59,163.58,1.99492667]
[1749667225388,18.64964886,163.65,163.58,1.99291193]
[1749667225598,14.36092518,163.61,163.56,14.36092518]
[1749667225784,14.36092518,163.6,163.56,14.36092518]
[1749667225992,18.64964886,163.65,163.56,14.36092518]
[1749667226187,14.36092518,163.6,163.56,14.36092518]
[1749667226361,14.36092518,163.6,163.57,1.99281897]
[1749667226694,14.36092518,163.6,163.58,1.99284992]
[1749667226906,14.36092518,163.6,163.59,1.99282816]
[1749667227069,14.36092518,163.6,163.56,14.36092518]
[1749667227268,14.36092518,163.6,163.57,1.99283911]
[1749667227497,14.36092518,163.6,163.58,1.99283911]
[1749667227713,14.36092518,163.6,163.59,1.9928386]
[1749667227998,14.36092518,163.6,163.59,1.99283834]
[1749667228171,14.36092518,163.6,163.59,1.99282779]
[1749667228486,14.36092518,163.6,163.55,14.64524832]
[1749667228686,14.36092518,163.6,163.56,1.99282881]
[1749667228875,14.36092518,163.6,163.55,14.64524832]
[1749667229072,14.36092518,163.6,163.56,1.99290188]
[1749667229268,14.36092518,163.6,163.57,1.99290163]
[1749667229482,14.36092518,163.6,163.58,1.99290163]
[1749667229665,18.64964886,163.65,163.59,1.99290112]
[1749667229864,14.36092518,163.6,163.55,0.28432314]
[1749667230096,14.36092518,163.59,163.55,0.28432314]
[1749667230266,14.36092518,163.59,163.56,1.99199508]
[1749667230598,14.36092518,163.59,163.55,0.28432314]
[1749667230967,14.36092518,163.59,163.56,1.99203379]
[1749667231162,14.36092518,163.59,163.57,1.99203354]
[1749667231392,8.2893,163.66,163.55,0.28432314]
[1749667231696,14.36092518,163.59,163.55,0.28432314]
[1749667232195,18.64964886,163.65,163.56,2.01226319]
[1749667232388,14.36092518,163.59,163.55,0.28432314]
[1749667232897,14.36092518,163.59,163.56,2.01222704]
[1749667233082,14.36092518,163.58,163.57,2.01222704]
[1749667233266,14.36092518,163.59,163.55,14.64524832]
[1749667233464,14.36092518,163.59,163.56,2.01222352]
[1749667233668,14.36092518,163.59,163.57,2.0122338]
[1749667233997,8.2893,163.66,163.58,16.37308494]
[1749667234286,14.36092518,163.63,163.59,2.29630831]
[1749667234492,14.36092518,163.63,163.6,2.01198517]
[1749667234793,14.36092518,163.62,163.61,2.01189776]
[1749667234975,14.36092518,163.62,163.61,2.0118249]
[1749667235176,14.36092518,163.62,163.59,0.42648471]
[1749667235491,8.2893,163.66,163.6,2.01182106]
[1749667235676,8.2893,163.66,163.61,2.01182106]
[1749667235882,14.36092518,163.62,163.59,0.42648471]
[1749667236194,14.36092518,163.62,163.6,2.01188428]
[1749667236387,14.36092518,163.62,163.59,0.42648471]
[1749667236575,14.36092518,163.62,163.6,2.01188428]
[1749667236775,14.36092518,163.62,163.61,2.00644345]
[1749667237187,8.2893,163.66,163.61,2.00644345]
[1749667237371,8.2893,163.66,163.59,0.42648471]
[1749667237567,14.36092518,163.62,163.6,2.00644942]
[1749667237779,14.36092518,163.62,163.61,2.00644942]
[1749667237996,14.36092518,163.62,163.59,26.42648471]
[1749667238171,14.36092518,163.62,163.6,2.00644287]
[1749667238511,14.36092518,163.61,163.59,26.28432314]
[1749667238819,14.36092518,163.61,163.6,2.00646423]
[1749667238969,8.2893,163.66,163.59,26.28432314]
[1749667239173,14.36092518,163.62,163.6,2.00646699]
[1749667239373,14.36092518,163.63,163.59,26.28432314]
[1749667239715,8.2893,163.66,163.6,2.00647478]
[1749667240005,14.36092518,163.63,163.61,2.00647478]
[1749667240211,1.6527,163.66,163.59,40.64524832]
[1749667240516,14.36092518,163.63,163.59,40.64524832]
[1749667240803,1.6527,163.66,163.6,2.00644319]
[1749667241015,14.36092518,163.64,163.59,40.64524832]
[1749667241309,14.36092518,163.68,163.6,2.00635886]
[1749667241486,14.36092518,163.64,163.59,40.64524832]
[1749667241687,14.36092518,163.64,163.6,2.00632378]
[1749667241906,14.36092518,163.64,163.61,2.00632353]
[1749667242113,6.6,163.69,163.62,2.00632327]
[1749667242286,6.6,163.69,163.63,0.28432314]
[1749667242611,14.36092518,163.67,163.64,2.00607812]
[1749667242818,14.36092518,163.68,163.63,14.64524832]
[1749667242986,14.36092518,163.68,163.64,28.00592782]
[1749667243186,14.36092518,163.68,163.65,2.00587782]
[1749667243425,14.36092518,163.68,163.66,2.00586741]
[1749667243705,14.36092518,163.68,163.67,2.00585101]
[1749667243895,14.36092518,163.68,163.64,26.0]
[1749667244101,14.36092518,163.68,163.65,2.00585852]
[1749667244297,14.36092518,163.67,163.66,2.00585826]
[1749667244701,14.36092518,163.67,163.65,26.0]
[1749667244883,18.64964886,163.73,163.66,2.00585826]
[1749667245092,14.36092518,163.67,163.65,26.0]
[1749667245292,14.36092518,163.67,163.66,2.00585056]
[1749667245803,14.36092518,163.67,163.65,26.0]
[1749667248524,18.64964886,163.73,163.65,26.0]
[1749667248689,14.36092518,163.68,163.65,26.0]
[1749667249395,7.9313,163.74,163.66,0.28432314]
[1749667249614,14.36092518,163.7,163.66,0.28432314]
[1749667250326,37.98044437,163.76,163.66,14.78740989]
[1749667250488,6.6,163.77,163.68,14.36092518]
[1749667250797,14.36092518,163.72,163.68,0.28432314]
[1749667251387,14.36092518,163.74,163.7,0.28432314]
[1749667251592,6.6,163.77,163.7,14.64524832]
[1749667251593,14.36092518,163.75,163.7,14.64524832]
[1749667252187,14.36092518,163.75,163.7,0.42648471]
[1749667252412,14.36092518,163.75,163.71,14.36092518]
[1749667252628,14.36092518,163.76,163.71,14.36092518]
[1749667252902,14.36092518,163.75,163.7,14.78740989]
[1749667253812,14.36092518,163.74,163.7,0.28432314]
[1749667254491,1.6087,163.78,163.7,0.28432314]
[1749667254686,14.36092518,163.74,163.7,0.28432314]
[1749667256508,14.36092518,163.73,163.7,0.28432314]
[1749667257206,14.36092518,163.71,163.66,25.05536366]
[1749667257405,14.36092518,163.71,163.67,0.42648471]
[1749667257606,14.36092518,163.71,163.66,77.99536366]
[1749667257607,14.36092518,163.7,163.66,10.69443848]
[1749667257809,14.36092518,163.68,163.66,10.69443848]
[1749667258000,26.53168144,163.76,163.66,10.69443848]
[1749667258242,6.064,163.76,163.67,0.28432314]
[1749667258452,14.36092518,163.71,163.67,14.50308675]
[1749667258597,14.36092518,163.7,163.67,0.28432314]
[1749667260215,20.42492518,163.76,163.67,0.28432314]
[1749667260422,14.36092518,163.7,163.67,0.28432314]
[1749667261113,26.53146589,163.76,163.66,36.69443848]
[1749667261324,14.36092518,163.68,163.66,36.69443848]
[1749667261507,14.36092518,163.69,163.66,36.69443848]
[1749667262024,18.64964886,163.75,163.66,51.05536366]
[1749667262320,14.36092518,163.69,163.66,36.69443848]
[1749667262527,18.64964886,163.75,163.66,36.69443848]
[1749667262897,14.36092518,163.69,163.66,36.69443848]
[1749667263702,14.36092518,163.68,163.66,36.69443848]
[1749667264019,6.2676,163.7,163.6,42.82612518]
[1749667264218,14.36092518,163.66,163.61,41.28092518]
[1749667264516,14.36092518,163.65,163.61,26.92]
[1749667264817,14.36092518,163.65,163.62,0.28432314]
[1749667265022,14.36092518,163.65,163.61,26.92]
[1749667265196,14.36092518,163.65,163.62,0.28432314]
[1749667265993,6.2676,163.7,163.62,0.28432314]
[1749667266198,14.36092518,163.65,163.62,0.28432314]
[1749667267421,14.36092518,163.65,163.61,14.78740989]
[1749667267807,14.36092518,163.65,163.61,0.42648471]
[1749667268010,14.36092518,163.66,163.61,14.78740989]
[1749667268529,14.36092518,163.66,163.63,0.28432314]
[1749667268733,14.36092518,163.67,163.63,0.28432314]
[1749667268932,14.36092518,163.67,163.63,0.42648471]
[1749667269136,14.36092518,163.66,163.63,0.42648471]
[1749667269506,14.36092518,163.67,163.63,0.42648471]
[1749667269737,14.36092518,163.67,163.63,14.78740989]
[1749667269908,14.36092518,163.69,163.65,0.42648471]
[1749667271835,14.36092518,163.68,163.65,0.42648471]
[1749667272205,14.36092518,163.69,163.65,0.42648471]
[1749667272748,1.6373,163.72,163.65,0.42648471]
[1749667273032,14.36092518,163.69,163.65,0.42648471]
[1749667275421,14.36092518,163.68,163.65,0.42648471]
[1749667275923,14.36092518,163.69,163.65,0.42648471]
[1749667276239,14.36092518,163.69,163.65,14.78740989]
[1749667276442,14.36092518,163.69,163.65,0.42648471]
[1749667277018,32.2089,163.74,163.65,14.78740989]
[1749667277236,14.36092518,163.71,163.67,14.36092518]
[1749667277843,14.36092518,163.71,163.66,14.78740989]
[1749667278333,14.36092518,163.7,163.66,14.78740989]
[1749667278537,34.53417404,163.76,163.66,14.78740989]
[1749667278727,14.36092518,163.7,163.66,14.78740989]
[1749667278929,14.36092518,163.7,163.66,0.42648471]
[1749667279731,14.36092518,163.69,163.66,0.42648471]
[1749667279928,34.53417404,163.76,163.65,27.16432314]
[1749667279929,26.0,163.73,163.65,27.16432314]
[1749667280250,26.0,163.73,163.65,0.28432314]
[1749667280251,14.36092518,163.68,163.65,0.28432314]
[1749667280619,14.36092518,163.67,163.65,0.28432314]
[1749667281628,14.36092518,163.68,163.65,0.28432314]
[1749667284424,32.2581,163.73,163.65,0.28432314]
[1749667284745,14.36092518,163.68,163.65,0.28432314]
[1749667285136,32.2581,163.73,163.65,20.75584649]
[1749667285329,14.36092518,163.69,163.65,20.75584649]
[1749667285531,14.36092518,163.69,163.65,6.39492131]
[1749667285846,14.36092518,163.69,163.65,10.88844625]
[1749667286531,14.36092518,163.69,163.65,22.1727217]
[1749667287143,14.36092518,163.69,163.65,42.64421264]
[1749667288636,14.36092518,163.7,163.66,14.36092518]
[1749667288833,14.36092518,163.71,163.67,0.28432314]
[1749667289238,14.36092518,163.73,163.69,0.28432314]
[1749667291354,1.5236,163.76,163.69,0.28432314]
[1749667291555,14.36092518,163.73,163.69,0.28432314]
[1749667292726,14.36092518,163.74,163.69,14.64524832]
[1749667292924,14.36092518,163.73,163.69,0.28432314]
[1749667294349,14.36092518,163.74,163.69,14.78740989]
[1749667294928,14.36092518,163.74,163.69,0.42648471]
[1749667295131,14.36092518,163.73,163.69,0.28432314]
[1749667296458,14.36092518,163.71,163.68,0.42648471]
[1749667296628,14.36092518,163.71,163.67,37.28427545]
[1749667296629,14.36092518,163.71,163.69,26.0]
[1749667297025,15.88452518,163.76,163.69,26.0]
[1749667297247,14.36092518,163.71,163.69,26.0]
[1749667298870,1.5236,163.76,163.69,26.0]
[1749667299031,14.36092518,163.72,163.69,26.0]
[1749667300259,14.36092518,163.7,163.65,109.18839856]
[1749667300433,14.36092518,163.68,163.66,0.28432314]
[1749667300929,60.53417404,163.76,163.65,10.60412311]
[1749667300930,14.36092518,163.67,163.65,10.60412311]
[1749667303498,6.0246,163.73,163.65,10.60412311]
[1749667303499,14.36092518,163.68,163.65,10.60412311]
[1749667304161,6.0246,163.73,163.65,10.60412311]
[1749667304336,14.36092518,163.68,163.65,10.60412311]
[1749667305433,14.36092518,163.67,163.65,10.60412311]
[1749667305634,14.36092518,163.66,163.65,10.60412311]
[1749667306864,14.36092518,163.66,163.6,14.64524832]
[1749667306865,14.36092518,163.66,163.58,11.28427545]
[1749667307042,1.6419,163.64,163.57,11.28427545]
[1749667307233,1.6419,163.64,163.57,0.28432314]
[1749667307436,14.36092518,163.61,163.56,25.64520063]
[1749667307766,14.36092518,163.61,163.57,0.28432314]
[1749667307972,14.36092518,163.61,163.56,14.36092518]
[1749667308271,14.36092518,163.6,163.55,64.10427545]
[1749667308447,1.6419,163.64,163.56,14.78740989]
[1749667308647,14.36092518,163.61,163.56,0.42648471]
[1749667308957,14.36092518,163.61,163.56,14.78740989]
[1749667309156,14.36092518,163.61,163.56,14.64524832]
[1749667309463,14.36092518,163.64,163.6,0.14216157]
[1749667309961,14.36092518,163.63,163.6,0.14216157]
[1749667310871,14.36092518,163.63,163.61,2.00959004]
[1749667311034,32.5207,163.67,163.62,2.00958979]
[1749667311230,1.663,163.68,163.63,2.00944671]
[1749667311450,14.36092518,163.67,163.64,2.00939967]
[1749667311752,14.36092518,163.67,163.65,2.0093049]
[1749667311962,14.36092518,163.67,163.66,2.0093049]
[1749667312440,14.36092518,163.68,163.63,14.36092518]
[1749667312643,14.36092518,163.68,163.64,0.28432314]
[1749667312845,14.36092518,163.68,163.65,2.00922804]
[1749667313064,14.36092518,163.68,163.66,2.00922778]
[1749667313363,14.36092518,163.67,163.64,0.28432314]
[1749667313568,14.36092518,163.67,163.65,2.00922727]
[1749667313855,14.36092518,163.67,163.64,0.28432314]
[1749667314069,14.36092518,163.67,163.65,2.00921725]
[1749667314237,14.36092518,163.67,163.64,0.28432314]
[1749667314437,14.36092518,163.67,163.65,2.00921447]
[1749667314638,14.36092518,163.68,163.66,2.00913019]
[1749667314838,33.998,163.72,163.64,14.64524832]
[1749667315042,14.36092518,163.68,163.65,2.00912565]
[1749667315267,14.36092518,163.68,163.66,2.00912642]
[1749667315453,14.36092518,163.68,163.64,14.64524832]
[1749667315646,14.36092518,163.68,163.65,2.00911468]
[1749667315844,14.36092518,163.68,163.64,14.64524832]
[1749667317961,14.36092518,163.69,163.65,14.36092518]
[1749667318151,14.36092518,163.7,163.66,14.36092518]
[1749667318939,33.998,163.72,163.66,14.36092518]
[1749667319156,14.36092518,163.72,163.67,14.36092518]
[1749667319442,14.36092518,163.71,163.67,0.28432314]
[1749667320072,26.0,163.75,163.63,0.14216157]
[1749667320073,14.36092518,163.7,163.63,0.14216157]
[1749667320257,14.36092518,163.69,163.63,0.42648471]
[1749667320453,18.64964886,163.74,163.65,14.36092518]
[1749667320772,14.36092518,163.7,163.65,14.36092518]
[1749667321152,14.36092518,163.7,163.66,14.36092518]
[1749667321351,14.36092518,163.71,163.66,14.36092518]
[1749667323178,26.0,163.75,163.66,14.36092518]
[1749667323478,14.36092518,163.72,163.67,14.36092518]
[1749667323771,14.36092518,163.72,163.68,14.64524832]
[1749667323972,14.36092518,163.72,163.68,0.28432314]
[1749667324160,14.36092518,163.72,163.68,14.64524832]